[Event "January 9 Late 2024"]
[Site "https://www.chess.com"]
[Date "2024.01.09"]
[Round "11"]
[White "Bueno, Alfeu Junior Varela"]
[Black "Rose, Felix"]
[Result "1-0"]
[Board "113"]
[TimeControl "180+1"]
[WhiteFideId "2108879"]
[BlackFideId "5105722"]
[WhiteElo "2376"]
[BlackElo "2248"]
[WhiteTeam "BRA"]
[BlackTeam "MEX"]
[WhiteClock "0:01:23"]
[BlackClock "0:00:00"]

1. e4 {[%clk 0:02:54]}  e5 {[%clk 0:02:57]} 2. Nc3 {[%clk 0:02:54]}  Nf6 {[%clk 0:02:57]} 3. f4 {[%clk 0:02:54]}  d5 {[%clk 0:02:56]} 4. fxe5 {[%clk 0:02:55]}  Nxe4 {[%clk 0:02:57]} 5. Qf3 {[%clk 0:02:56]}  Nxc3 {[%clk 0:02:54]} 6. dxc3 {[%clk 0:02:57]}  Nc6 {[%clk 0:02:44]} 7. Bf4 {[%clk 0:02:55]}  Qh4+ {[%clk 0:02:17]} 8. g3 {[%clk 0:02:51]}  Qg4 {[%clk 0:02:15]} 9. Qxd5 {[%clk 0:02:51]}  Be6 {[%clk 0:02:15]} 10. Qf3 {[%clk 0:02:45]}  O-O-O {[%clk 0:02:06]} 11. Qxg4 {[%clk 0:02:42]}  Bxg4 {[%clk 0:02:06]} 12. Bh3 {[%clk 0:02:42]}  Bxh3 {[%clk 0:02:03]} 13. Nxh3 {[%clk 0:02:43]}  Bc5 {[%clk 0:02:02]} 14. Ng5 {[%clk 0:02:29]}  Rd7 {[%clk 0:01:09]} 15. Rd1 {[%clk 0:02:22]}  Re7 {[%clk 0:01:08]} 16. Rd5 {[%clk 0:02:08]}  Bb6 {[%clk 0:00:51]} 17. Kd1 {[%clk 0:02:07]}  h6 {[%clk 0:00:36]} 18. Nf3 {[%clk 0:02:04]}  g5 {[%clk 0:00:36]} 19. Bd2 {[%clk 0:02:00]}  g4 {[%clk 0:00:34]} 20. Nd4 {[%clk 0:01:55]}  Nxe5 {[%clk 0:00:23]} 21. Nf5 {[%clk 0:01:38]}  Re6 {[%clk 0:00:23]} 22. Nxh6 {[%clk 0:01:31]}  Nf3 {[%clk 0:00:17]} 23. Nxf7 {[%clk 0:01:26]}  Rf8 {[%clk 0:00:00]} 24. Ng5 {[%clk 0:01:23]} 1-0

[Event "January 9 Late 2024"]
[Site "https://www.chess.com"]
[Date "2024.01.09"]
[Round "11"]
[White "Romero Ruscalleda, Josep"]
[Black "Curtis, John"]
[Result "1-0"]
[Board "115"]
[TimeControl "180+1"]
[WhiteFideId "2231859"]
[BlackFideId "3200256"]
[WhiteElo "2264"]
[BlackElo "2138"]
[WhiteTeam "ESP"]
[BlackTeam "AUS"]
[WhiteClock "0:00:48"]
[BlackClock "0:00:07"]

1. e4 {[%clk 0:03:00]}  c5 {[%clk 0:02:56]} 2. c3 {[%clk 0:03:00]}  d6 {[%clk 0:02:55]} 3. d4 {[%clk 0:03:00]}  cxd4 {[%clk 0:02:47]} 4. cxd4 {[%clk 0:02:59]}  Nf6 {[%clk 0:02:47]} 5. Nc3 {[%clk 0:02:59]}  g6 {[%clk 0:02:48]} 6. Nf3 {[%clk 0:02:58]}  Bg7 {[%clk 0:02:48]} 7. Bd3 {[%clk 0:02:56]}  Bg4 {[%clk 0:02:48]} 8. O-O {[%clk 0:02:54]}  O-O {[%clk 0:02:46]} 9. h3 {[%clk 0:02:53]}  Bxf3 {[%clk 0:02:46]} 10. Qxf3 {[%clk 0:02:53]}  Nfd7 {[%clk 0:02:45]} 11. e5 {[%clk 0:02:39]}  Nc6 {[%clk 0:02:45]} 12. exd6 {[%clk 0:02:36]}  exd6 {[%clk 0:02:39]} 13. d5 {[%clk 0:02:32]}  Nce5 {[%clk 0:02:37]} 14. Qe2 {[%clk 0:02:31]}  Nxd3 {[%clk 0:02:34]} 15. Qxd3 {[%clk 0:02:31]}  a6 {[%clk 0:02:18]} 16. Be3 {[%clk 0:02:28]}  Rc8 {[%clk 0:02:11]} 17. Rac1 {[%clk 0:02:24]}  f5 {[%clk 0:02:06]} 18. Qd2 {[%clk 0:02:22]}  Ne5 {[%clk 0:02:03]} 19. b3 {[%clk 0:01:58]}  b5 {[%clk 0:01:54]} 20. Ne2 {[%clk 0:01:55]}  Qe7 {[%clk 0:01:40]} 21. Nd4 {[%clk 0:01:47]}  Rxc1 {[%clk 0:01:20]} 22. Rxc1 {[%clk 0:01:45]}  Qb7 {[%clk 0:01:20]} 23. Nc6 {[%clk 0:01:28]}  Nf7 {[%clk 0:01:10]} 24. Bd4 {[%clk 0:01:23]}  Bxd4 {[%clk 0:00:48]} 25. Qxd4 {[%clk 0:01:22]}  Re8 {[%clk 0:00:48]} 26. Qf6 {[%clk 0:01:04]}  Qd7 {[%clk 0:00:45]} 27. g3 {[%clk 0:00:58]}  Ne5 {[%clk 0:00:39]} 28. Nd4 {[%clk 0:00:56]}  Nd3 {[%clk 0:00:33]} 29. Rd1 {[%clk 0:00:50]}  Re1+ {[%clk 0:00:25]} 30. Rxe1 {[%clk 0:00:49]}  Nxe1 {[%clk 0:00:25]} 31. Ne6 {[%clk 0:00:49]}  Nf3+ {[%clk 0:00:13]} 32. Kg2 {[%clk 0:00:48]}  Ne1+ {[%clk 0:00:07]} 33. Kf1 {[%clk 0:00:48]} 1-0

[Event "January 9 Late 2024"]
[Site "https://www.chess.com"]
[Date "2024.01.09"]
[Round "11"]
[White "Ivanov, Aleksandr"]
[Black "Tikhonov, Viacheslav"]
[Result "0-1"]
[Board "116"]
[TimeControl "180+1"]
[WhiteFideId "2092980"]
[BlackFideId "44196407"]
[WhiteElo "2159"]
[BlackElo "2507"]
[WhiteTeam "USA"]
[BlackTeam "RUS"]
[WhiteClock "0:00:14"]
[BlackClock "0:01:49"]

1. d4 {[%clk 0:02:58]}  Nf6 {[%clk 0:02:58]} 2. c4 {[%clk 0:02:57]}  g6 {[%clk 0:02:58]} 3. Nc3 {[%clk 0:02:57]}  d5 {[%clk 0:02:58]} 4. cxd5 {[%clk 0:02:57]}  Nxd5 {[%clk 0:02:59]} 5. e4 {[%clk 0:02:57]}  Nxc3 {[%clk 0:02:51]} 6. bxc3 {[%clk 0:02:56]}  Bg7 {[%clk 0:02:52]} 7. Nf3 {[%clk 0:02:56]}  c5 {[%clk 0:02:53]} 8. Be3 {[%clk 0:02:55]}  O-O {[%clk 0:02:54]} 9. Be2 {[%clk 0:02:52]}  Qa5 {[%clk 0:02:49]} 10. O-O {[%clk 0:02:52]}  Qxc3 {[%clk 0:02:45]} 11. Rc1 {[%clk 0:02:48]}  Qa3 {[%clk 0:02:43]} 12. Rxc5 {[%clk 0:02:43]}  Qxa2 {[%clk 0:02:34]} 13. Qc2 {[%clk 0:02:12]}  Qxc2 {[%clk 0:02:34]} 14. Rxc2 {[%clk 0:02:12]}  Nc6 {[%clk 0:02:26]} 15. Rfc1 {[%clk 0:02:06]}  Bg4 {[%clk 0:02:24]} 16. d5 {[%clk 0:02:06]}  Na5 {[%clk 0:02:18]} 17. h3 {[%clk 0:01:57]}  Bxf3 {[%clk 0:02:17]} 18. Bxf3 {[%clk 0:01:57]}  b6 {[%clk 0:02:16]} 19. Be2 {[%clk 0:01:32]}  Nb3 {[%clk 0:02:11]} 20. Rb1 {[%clk 0:01:28]}  Nd4 {[%clk 0:02:10]} 21. Bxd4 {[%clk 0:01:17]}  Bxd4 {[%clk 0:02:11]} 22. Rbc1 {[%clk 0:01:14]}  Bc5 {[%clk 0:02:10]} 23. Ba6 {[%clk 0:01:14]}  Rad8 {[%clk 0:02:08]} 24. Kf1 {[%clk 0:01:06]}  f5 {[%clk 0:02:09]} 25. e5 {[%clk 0:01:04]}  f4 {[%clk 0:02:02]} 26. Rd1 {[%clk 0:00:43]}  Kg7 {[%clk 0:01:57]} 27. Rcd2 {[%clk 0:00:42]}  f3 {[%clk 0:01:50]} 28. g3 {[%clk 0:00:36]}  Rf5 {[%clk 0:01:50]} 29. Re1 {[%clk 0:00:14]}  Bb4 {[%clk 0:01:49]} 0-1

[Event "January 9 Late 2024"]
[Site "https://www.chess.com"]
[Date "2024.01.09"]
[Round "11"]
[White "Mazurkiewicz, Michal"]
[Black "Feliz Dotel, Dewar Bienvenido"]
[Result "1-0"]
[Board "117"]
[TimeControl "180+1"]
[WhiteFideId "1124943"]
[BlackFideId "6402801"]
[WhiteElo "2411"]
[BlackElo "2154"]
[WhiteTeam "POL"]
[BlackTeam "DOM"]
[WhiteClock "0:00:39"]
[BlackClock "0:00:02"]

1. e4 {[%clk 0:02:59]}  c5 {[%clk 0:02:58]} 2. Nf3 {[%clk 0:03:00]}  g6 {[%clk 0:02:58]} 3. g3 {[%clk 0:03:00]}  d5 {[%clk 0:02:39]} 4. exd5 {[%clk 0:02:58]}  Qxd5 {[%clk 0:02:39]} 5. Nc3 {[%clk 0:02:59]}  Qd6 {[%clk 0:02:36]} 6. Bg2 {[%clk 0:02:57]}  a6 {[%clk 0:02:36]} 7. O-O {[%clk 0:02:57]}  Bg7 {[%clk 0:02:36]} 8. d3 {[%clk 0:02:57]}  Nf6 {[%clk 0:02:35]} 9. Bf4 {[%clk 0:02:56]}  Qd8 {[%clk 0:02:34]} 10. Qd2 {[%clk 0:02:38]}  Nc6 {[%clk 0:02:21]} 11. Ne5 {[%clk 0:02:34]}  Nxe5 {[%clk 0:02:17]} 12. Bxe5 {[%clk 0:02:35]}  O-O {[%clk 0:02:15]} 13. h3 {[%clk 0:02:33]}  Be6 {[%clk 0:02:08]} 14. Rfe1 {[%clk 0:02:23]}  Qd7 {[%clk 0:01:58]} 15. Kh2 {[%clk 0:02:18]}  Rac8 {[%clk 0:01:48]} 16. a4 {[%clk 0:02:15]}  b5 {[%clk 0:01:44]} 17. axb5 {[%clk 0:02:13]}  axb5 {[%clk 0:01:45]} 18. Ra5 {[%clk 0:02:00]}  b4 {[%clk 0:01:29]} 19. Na4 {[%clk 0:01:59]}  Qd8 {[%clk 0:00:48]} 20. Rxc5 {[%clk 0:01:53]}  Rxc5 {[%clk 0:00:48]} 21. Nxc5 {[%clk 0:01:54]}  Bd5 {[%clk 0:00:32]} 22. Qxb4 {[%clk 0:01:47]}  Bxg2 {[%clk 0:00:30]} 23. Kxg2 {[%clk 0:01:48]}  Qd5+ {[%clk 0:00:28]} 24. Kg1 {[%clk 0:01:48]}  Rc8 {[%clk 0:00:28]} 25. d4 {[%clk 0:01:40]}  Nh5 {[%clk 0:00:25]} 26. c4 {[%clk 0:01:19]}  Qf3 {[%clk 0:00:22]} 27. Qc3 {[%clk 0:01:19]}  Qxc3 {[%clk 0:00:17]} 28. bxc3 {[%clk 0:01:19]}  f6 {[%clk 0:00:17]} 29. Bf4 {[%clk 0:01:17]}  e5 {[%clk 0:00:16]} 30. Be3 {[%clk 0:01:14]}  Bf8 {[%clk 0:00:15]} 31. Rb1 {[%clk 0:00:54]}  Ng7 {[%clk 0:00:14]} 32. Nd7 {[%clk 0:00:50]}  Nf5 {[%clk 0:00:06]} 33. Rb7 {[%clk 0:00:38]}  Nxe3 {[%clk 0:00:04]} 34. Nxf6+ {[%clk 0:00:38]}  Kh8 {[%clk 0:00:02]} 35. Rxh7# {[%clk 0:00:39]} 1-0

[Event "January 9 Late 2024"]
[Site "https://www.chess.com"]
[Date "2024.01.09"]
[Round "11"]
[White "Stachanczyk, Jacek"]
[Black "Quirke, Jeffrey"]
[Result "1/2-1/2"]
[Board "118"]
[TimeControl "180+1"]
[WhiteFideId "1116657"]
[BlackFideId "2013029"]
[WhiteElo "2375"]
[BlackElo "2147"]
[WhiteTeam "POL"]
[BlackTeam "USA"]
[WhiteClock "0:01:01"]
[BlackClock "0:00:32"]

1. e4 {[%clk 0:02:57]}  e6 {[%clk 0:02:59]} 2. d4 {[%clk 0:02:56]}  d5 {[%clk 0:03:00]} 3. Nc3 {[%clk 0:02:55]}  Nf6 {[%clk 0:02:59]} 4. e5 {[%clk 0:02:54]}  Nfd7 {[%clk 0:02:59]} 5. f4 {[%clk 0:02:55]}  c5 {[%clk 0:02:59]} 6. Nf3 {[%clk 0:02:56]}  Nc6 {[%clk 0:02:59]} 7. Be3 {[%clk 0:02:56]}  Rb8 {[%clk 0:02:59]} 8. Qd2 {[%clk 0:02:54]}  Qa5 {[%clk 0:02:59]} 9. Ne2 {[%clk 0:02:38]}  Qxd2+ {[%clk 0:02:42]} 10. Kxd2 {[%clk 0:02:39]}  cxd4 {[%clk 0:02:21]} 11. Nexd4 {[%clk 0:02:40]}  Nxd4 {[%clk 0:02:21]} 12. Nxd4 {[%clk 0:02:39]}  Nc5 {[%clk 0:02:13]} 13. Bd3 {[%clk 0:02:39]}  Bd7 {[%clk 0:02:09]} 14. b3 {[%clk 0:02:34]}  Be7 {[%clk 0:02:08]} 15. a4 {[%clk 0:02:32]}  a5 {[%clk 0:02:03]} 16. h4 {[%clk 0:02:18]}  h5 {[%clk 0:01:56]} 17. g3 {[%clk 0:02:15]}  g6 {[%clk 0:01:54]} 18. Rhb1 {[%clk 0:01:55]}  O-O {[%clk 0:01:30]} 19. c3 {[%clk 0:01:55]}  Rfc8 {[%clk 0:01:25]} 20. Bc2 {[%clk 0:01:56]}  Na6 {[%clk 0:01:18]} 21. Nb5 {[%clk 0:01:53]}  b6 {[%clk 0:01:10]} 22. Bd3 {[%clk 0:01:49]}  Nc5 {[%clk 0:01:08]} 23. Bxc5 {[%clk 0:01:42]}  Bxc5 {[%clk 0:01:01]} 24. Rf1 {[%clk 0:01:27]}  Bxb5 {[%clk 0:01:00]} 25. Bxb5 {[%clk 0:01:25]}  Rc7 {[%clk 0:00:55]} 26. Rac1 {[%clk 0:01:24]}  Rd8 {[%clk 0:00:53]} 27. Kd3 {[%clk 0:01:22]}  Be7 {[%clk 0:00:49]} 28. Rc2 {[%clk 0:01:19]}  Kg7 {[%clk 0:00:46]} 29. Rd1 {[%clk 0:01:16]}  f6 {[%clk 0:00:43]} 30. exf6+ {[%clk 0:01:14]}  Bxf6 {[%clk 0:00:43]} 31. Re1 {[%clk 0:01:11]}  Kf7 {[%clk 0:00:40]} 32. Re3 {[%clk 0:01:09]}  Rc5 {[%clk 0:00:33]} 33. Ba6 {[%clk 0:01:00]}  Rd6 {[%clk 0:00:32]} 34. Bb5 {[%clk 0:01:00]}  Rd8 {[%clk 0:00:32]} 35. Ba6 {[%clk 0:01:00]}  Rd6 {[%clk 0:00:32]} 36. Bb5 {[%clk 0:01:01]}  Rd8 {[%clk 0:00:32]} 1/2-1/2

[Event "January 9 Late 2024"]
[Site "https://www.chess.com"]
[Date "2024.01.09"]
[Round "11"]
[White "Skaric, Djuro"]
[Black "Harrington, Steve"]
[Result "1-0"]
[Board "120"]
[TimeControl "180+1"]
[WhiteFideId "934569"]
[BlackFideId "2038730"]
[WhiteElo "2283"]
[BlackElo "2149"]
[WhiteTeam "SRB"]
[BlackTeam "USA"]
[WhiteClock "0:01:38"]
[BlackClock "0:00:06"]

1. g3 {[%clk 0:03:00]}  d5 {[%clk 0:02:58]} 2. Bg2 {[%clk 0:03:01]}  Nc6 {[%clk 0:02:58]} 3. d3 {[%clk 0:03:02]}  e5 {[%clk 0:02:57]} 4. Nf3 {[%clk 0:03:03]}  Nf6 {[%clk 0:02:56]} 5. O-O {[%clk 0:03:03]}  Bd6 {[%clk 0:02:57]} 6. Nc3 {[%clk 0:03:04]}  h6 {[%clk 0:02:54]} 7. e4 {[%clk 0:03:04]}  dxe4 {[%clk 0:02:52]} 8. dxe4 {[%clk 0:03:03]}  Bg4 {[%clk 0:02:51]} 9. h3 {[%clk 0:03:03]}  Be6 {[%clk 0:02:49]} 10. Be3 {[%clk 0:03:02]}  Qd7 {[%clk 0:02:49]} 11. Kh2 {[%clk 0:03:02]}  a6 {[%clk 0:02:45]} 12. Nd2 {[%clk 0:03:02]}  g5 {[%clk 0:02:43]} 13. Nb3 {[%clk 0:03:01]}  Qe7 {[%clk 0:02:38]} 14. Nd5 {[%clk 0:02:59]}  Bxd5 {[%clk 0:02:29]} 15. exd5 {[%clk 0:02:59]}  Nb8 {[%clk 0:02:26]} 16. c4 {[%clk 0:02:59]}  b6 {[%clk 0:02:24]} 17. c5 {[%clk 0:02:59]}  bxc5 {[%clk 0:02:23]} 18. Rc1 {[%clk 0:02:58]}  Nbd7 {[%clk 0:02:21]} 19. Na5 {[%clk 0:02:58]}  O-O {[%clk 0:02:16]} 20. Nc6 {[%clk 0:02:58]}  Qe8 {[%clk 0:02:15]} 21. Qc2 {[%clk 0:02:54]}  Nb6 {[%clk 0:02:14]} 22. Rcd1 {[%clk 0:02:52]}  Nbxd5 {[%clk 0:02:11]} 23. Bxd5 {[%clk 0:02:45]}  Nxd5 {[%clk 0:02:10]} 24. Rxd5 {[%clk 0:02:45]}  Qxc6 {[%clk 0:02:11]} 25. Rfd1 {[%clk 0:02:43]}  f5 {[%clk 0:01:56]} 26. Bxc5 {[%clk 0:02:43]}  Rf6 {[%clk 0:01:33]} 27. Qc4 {[%clk 0:02:42]}  Kg7 {[%clk 0:01:28]} 28. b3 {[%clk 0:02:41]}  Raf8 {[%clk 0:01:25]} 29. a4 {[%clk 0:02:16]}  R8f7 {[%clk 0:01:13]} 30. Bxd6 {[%clk 0:02:02]}  Qxc4 {[%clk 0:00:57]} 31. bxc4 {[%clk 0:02:02]}  cxd6 {[%clk 0:00:55]} 32. Rxd6 {[%clk 0:02:02]}  Rc7 {[%clk 0:00:55]} 33. Rxf6 {[%clk 0:02:00]}  Kxf6 {[%clk 0:00:54]} 34. Rd6+ {[%clk 0:02:00]}  Kg7 {[%clk 0:00:54]} 35. Rxa6 {[%clk 0:01:57]}  Rxc4 {[%clk 0:00:54]} 36. Ra8 {[%clk 0:01:57]}  e4 {[%clk 0:00:53]} 37. Kg1 {[%clk 0:01:54]}  Rc2 {[%clk 0:00:52]} 38. a5 {[%clk 0:01:53]}  Ra2 {[%clk 0:00:52]} 39. a6 {[%clk 0:01:53]}  f4 {[%clk 0:00:51]} 40. gxf4 {[%clk 0:01:51]}  gxf4 {[%clk 0:00:51]} 41. a7 {[%clk 0:01:52]}  h5 {[%clk 0:00:49]} 42. h4 {[%clk 0:01:51]}  Kh7 {[%clk 0:00:47]} 43. Kf1 {[%clk 0:01:50]}  e3 {[%clk 0:00:45]} 44. fxe3 {[%clk 0:01:47]}  fxe3 {[%clk 0:00:46]} 45. Ke1 {[%clk 0:01:47]}  Kg7 {[%clk 0:00:45]} 46. Kd1 {[%clk 0:01:45]}  Kf7 {[%clk 0:00:45]} 47. Rh8 {[%clk 0:01:41]}  e2+ {[%clk 0:00:16]} 48. Ke1 {[%clk 0:01:41]}  Kf6 {[%clk 0:00:09]} 49. a8=Q {[%clk 0:01:39]}  Rxa8 {[%clk 0:00:09]} 50. Rxa8 {[%clk 0:01:39]}  Kf5 {[%clk 0:00:06]} 51. Ra4 {[%clk 0:01:38]} 1-0

[Event "January 9 Late 2024"]
[Site "https://www.chess.com"]
[Date "2024.01.09"]
[Round "11"]
[White "Dias, Joao Batista"]
[Black "Michalski, Olaf"]
[Result "0-1"]
[Board "124"]
[TimeControl "180+1"]
[WhiteFideId "2108240"]
[BlackFideId "1106740"]
[WhiteElo "2066"]
[BlackElo "2156"]
[WhiteTeam "BRA"]
[BlackTeam "POL"]
[WhiteClock "0:01:23"]
[BlackClock "0:00:05"]

1. e4 {[%clk 0:03:00]}  c5 {[%clk 0:02:59]} 2. Nf3 {[%clk 0:03:00]}  a6 {[%clk 0:02:59]} 3. d4 {[%clk 0:03:00]}  cxd4 {[%clk 0:03:00]} 4. Nxd4 {[%clk 0:03:00]}  Nf6 {[%clk 0:03:00]} 5. Bd3 {[%clk 0:02:59]}  e5 {[%clk 0:03:00]} 6. Ne2 {[%clk 0:02:59]}  Bc5 {[%clk 0:02:51]} 7. O-O {[%clk 0:02:57]}  h6 {[%clk 0:02:49]} 8. Nbc3 {[%clk 0:02:52]}  d6 {[%clk 0:02:48]} 9. h3 {[%clk 0:02:52]}  b5 {[%clk 0:02:40]} 10. Nd5 {[%clk 0:02:52]}  Nxd5 {[%clk 0:02:40]} 11. exd5 {[%clk 0:02:53]}  f5 {[%clk 0:02:36]} 12. c3 {[%clk 0:02:44]}  O-O {[%clk 0:02:11]} 13. Be3 {[%clk 0:02:43]}  Nd7 {[%clk 0:02:06]} 14. b4 {[%clk 0:02:40]}  Bxe3 {[%clk 0:02:00]} 15. fxe3 {[%clk 0:02:39]}  Qg5 {[%clk 0:02:01]} 16. Rf3 {[%clk 0:02:21]}  e4 {[%clk 0:02:00]} 17. Rg3 {[%clk 0:02:21]}  exd3 {[%clk 0:01:37]} 18. Rxg5 {[%clk 0:02:19]}  dxe2 {[%clk 0:01:37]} 19. Rxg7+ {[%clk 0:02:18]}  Kxg7 {[%clk 0:01:37]} 20. Qxe2 {[%clk 0:02:19]}  Ne5 {[%clk 0:01:31]} 21. e4 {[%clk 0:02:17]}  f4 {[%clk 0:01:30]} 22. a4 {[%clk 0:02:13]}  Bd7 {[%clk 0:01:30]} 23. axb5 {[%clk 0:02:13]}  Bxb5 {[%clk 0:01:23]} 24. Qd2 {[%clk 0:02:11]}  f3 {[%clk 0:01:18]} 25. Qd4 {[%clk 0:02:03]}  f2+ {[%clk 0:01:15]} 26. Kh2 {[%clk 0:02:03]}  f1=Q {[%clk 0:01:07]} 27. Rxf1 {[%clk 0:02:03]}  Rxf1 {[%clk 0:01:06]} 28. Qb6 {[%clk 0:02:02]}  Nf7 {[%clk 0:00:35]} 29. c4 {[%clk 0:01:53]}  Bxc4 {[%clk 0:00:26]} 30. Qc6 {[%clk 0:01:53]}  Rb8 {[%clk 0:00:23]} 31. Qxc4 {[%clk 0:01:53]}  Rb1 {[%clk 0:00:21]} 32. Qxa6 {[%clk 0:01:50]}  R1xb4 {[%clk 0:00:21]} 33. Qe2 {[%clk 0:01:43]}  Ne5 {[%clk 0:00:16]} 34. Qf2 {[%clk 0:01:33]}  R8b7 {[%clk 0:00:07]} 35. Qg3+ {[%clk 0:01:32]}  Kh7 {[%clk 0:00:07]} 36. Qf4 {[%clk 0:01:31]}  Rg7 {[%clk 0:00:04]} 37. Qf5+ {[%clk 0:01:31]}  Rg6 {[%clk 0:00:04]} 38. g4 {[%clk 0:01:30]}  Rb2+ {[%clk 0:00:04]} 39. Kg3 {[%clk 0:01:22]}  Rb3+ {[%clk 0:00:03]} 40. Kf2 {[%clk 0:01:21]}  Rf3+ {[%clk 0:00:03]} 41. Qxf3 {[%clk 0:01:18]}  Nxf3 {[%clk 0:00:03]} 42. Kxf3 {[%clk 0:01:19]}  Rf6+ {[%clk 0:00:04]} 43. Ke3 {[%clk 0:01:19]}  Kg6 {[%clk 0:00:04]} 44. Kd4 {[%clk 0:01:19]}  Rf4 {[%clk 0:00:04]} 45. Ke3 {[%clk 0:01:19]}  Kg5 {[%clk 0:00:04]} 46. h4+ {[%clk 0:01:19]}  Kxg4 {[%clk 0:00:04]} 47. h5 {[%clk 0:01:20]}  Rf8 {[%clk 0:00:04]} 48. e5 {[%clk 0:01:19]}  dxe5 {[%clk 0:00:04]} 49. Ke4 {[%clk 0:01:20]}  Rd8 {[%clk 0:00:03]} 50. Kxe5 {[%clk 0:01:20]}  Kxh5 {[%clk 0:00:04]} 51. Ke6 {[%clk 0:01:20]}  Kg4 {[%clk 0:00:04]} 52. d6 {[%clk 0:01:21]}  h5 {[%clk 0:00:04]} 53. Ke7 {[%clk 0:01:20]}  Rxd6 {[%clk 0:00:04]} 54. Kxd6 {[%clk 0:01:21]}  h4 {[%clk 0:00:05]} 55. Ke5 {[%clk 0:01:22]}  h3 {[%clk 0:00:05]} 56. Ke4 {[%clk 0:01:23]}  h2 {[%clk 0:00:05]} 57. Ke3 {[%clk 0:01:24]}  h1=Q {[%clk 0:00:05]} 58. Kf2 {[%clk 0:01:23]}  Qh2+ {[%clk 0:00:05]} 0-1

[Event "January 9 Late 2024"]
[Site "https://www.chess.com"]
[Date "2024.01.09"]
[Round "11"]
[White "Smirnov, Timofey"]
[Black "Oliveira, Tiago Batista"]
[Result "0-1"]
[Board "128"]
[TimeControl "180+1"]
[WhiteFideId "24176427"]
[BlackFideId "2108291"]
[WhiteElo "1993"]
[BlackElo "2027"]
[WhiteTeam "RUS"]
[BlackTeam "BRA"]
[WhiteClock "0:00:00"]
[BlackClock "0:00:09"]

1. e4 {[%clk 0:02:55]}  c5 {[%clk 0:02:58]} 2. c3 {[%clk 0:02:55]}  d5 {[%clk 0:02:50]} 3. exd5 {[%clk 0:02:48]}  Nf6 {[%clk 0:02:49]} 4. Bc4 {[%clk 0:02:39]}  Nxd5 {[%clk 0:02:32]} 5. Nf3 {[%clk 0:02:35]}  e6 {[%clk 0:02:29]} 6. O-O {[%clk 0:02:34]}  Be7 {[%clk 0:02:28]} 7. d4 {[%clk 0:02:31]}  O-O {[%clk 0:02:25]} 8. Re1 {[%clk 0:02:21]}  Nc6 {[%clk 0:02:22]} 9. Be3 {[%clk 0:01:58]}  Nxe3 {[%clk 0:02:20]} 10. Rxe3 {[%clk 0:01:56]}  cxd4 {[%clk 0:02:15]} 11. Nxd4 {[%clk 0:01:55]}  Nxd4 {[%clk 0:02:12]} 12. cxd4 {[%clk 0:01:55]}  Bf6 {[%clk 0:02:09]} 13. Rd3 {[%clk 0:01:40]}  Qc7 {[%clk 0:01:58]} 14. Bb3 {[%clk 0:01:36]}  Rd8 {[%clk 0:01:55]} 15. Nc3 {[%clk 0:01:34]}  Bd7 {[%clk 0:01:55]} 16. Rc1 {[%clk 0:01:30]}  Rac8 {[%clk 0:01:50]} 17. Ne2 {[%clk 0:01:16]}  Qb8 {[%clk 0:01:48]} 18. Rdc3 {[%clk 0:01:13]}  Bc6 {[%clk 0:01:43]} 19. Rd3 {[%clk 0:00:45]}  Bb5 {[%clk 0:01:37]} 20. Rxc8 {[%clk 0:00:42]}  Qxc8 {[%clk 0:01:37]} 21. Rd2 {[%clk 0:00:36]}  Bxe2 {[%clk 0:01:30]} 22. Qxe2 {[%clk 0:00:37]}  Bxd4 {[%clk 0:01:18]} 23. g3 {[%clk 0:00:20]}  Bb6 {[%clk 0:00:51]} 24. Rc2 {[%clk 0:00:20]}  Qd7 {[%clk 0:00:48]} 25. a3 {[%clk 0:00:18]}  h6 {[%clk 0:00:48]} 26. Rc1 {[%clk 0:00:18]}  Qd2 {[%clk 0:00:46]} 27. Qxd2 {[%clk 0:00:15]}  Rxd2 {[%clk 0:00:46]} 28. Rc8+ {[%clk 0:00:14]}  Kh7 {[%clk 0:00:45]} 29. Bc2+ {[%clk 0:00:15]}  g6 {[%clk 0:00:42]} 30. b3 {[%clk 0:00:13]}  Rxf2 {[%clk 0:00:39]} 31. Kh1 {[%clk 0:00:13]}  Kg7 {[%clk 0:00:36]} 32. a4 {[%clk 0:00:12]}  h5 {[%clk 0:00:28]} 33. Rc4 {[%clk 0:00:11]}  e5 {[%clk 0:00:21]} 34. Be4 {[%clk 0:00:11]}  Rb2 {[%clk 0:00:16]} 35. Rc3 {[%clk 0:00:09]}  Bd4 {[%clk 0:00:16]} 36. Rd3 {[%clk 0:00:09]}  b6 {[%clk 0:00:15]} 37. Bc6 {[%clk 0:00:08]}  f5 {[%clk 0:00:14]} 38. Bd5 {[%clk 0:00:08]}  Kf6 {[%clk 0:00:14]} 39. Rd1 {[%clk 0:00:08]}  Kg5 {[%clk 0:00:13]} 40. Rc1 {[%clk 0:00:08]}  e4 {[%clk 0:00:11]} 41. Bf7 {[%clk 0:00:05]}  Bc5 {[%clk 0:00:10]} 42. Rd1 {[%clk 0:00:02]}  e3 {[%clk 0:00:10]} 43. Re1 {[%clk 0:00:01]}  e2 {[%clk 0:00:10]} 44. Kg2 {[%clk 0:00:01]}  f4 {[%clk 0:00:10]} 45. h4+ {[%clk 0:00:00]}  Kf6 {[%clk 0:00:09]} 0-1